bitfinex-derivatives/quotes_ETHF0:USTF0_20250112
["timestamp","ask_amount","ask_price","bid_price","bid_amount"]
[1736688048796,3.2078,3262.9,3262.5,0.21465]
[1736688048991,0.54364184,3263.3,3262.7,3.42244]
[1736688048992,0.4511,3263.2,3262.7,3.42244]
[1736688049201,0.4511,3263.2,3262.7,3.88774]
[1736688049402,0.4511,3263.2,3262.7,3.2078]
[1736688049606,3.2078,3263.0,3262.3,3.2078]
[1736688049806,0.21467,3262.3,3261.8,4.4118]
[1736688050003,0.21466,3262.4,3261.8,4.62649]
[1736688050497,0.461,3262.5,3261.8,4.4118]
[1736688050704,0.21467,3262.3,3261.8,4.4118]
[1736688051302,0.461,3262.5,3261.8,4.4118]
[1736688051499,0.21468,3262.2,3261.8,3.2078]
[1736688051899,0.21467,3262.3,3261.8,3.2078]
[1736688052202,0.461,3262.5,3261.8,3.2078]
[1736688052397,0.461,3262.5,3261.2,0.68097583]
[1736688052398,3.2078,3262.1,3261.2,0.68097583]
[1736688052600,3.2078,3262.1,3261.2,0.46624583]
[1736688052601,0.21471,3261.6,3261.2,0.46624583]
[1736688053006,0.21472,3261.5,3261.2,0.46624583]
[1736688053202,0.4643,3261.9,3261.2,0.46624583]
[1736688053394,3.2078,3261.7,3261.0,3.2078]
[1736688053697,3.2078,3261.7,3260.6,3.2078]
[1736688054103,3.2078,3261.7,3261.0,0.21475]
[1736688054401,3.2078,3261.7,3260.6,3.2078]
[1736688054702,0.21475,3261.0,3260.7,0.4432]
[1736688055104,0.21475,3261.0,3260.7,0.65797]
[1736688055303,0.21475,3261.1,3260.8,0.21476]
[1736688055499,0.21475,3261.0,3260.7,0.65797]
[1736688056000,0.21475,3261.0,3260.7,0.4432]
[1736688056306,0.21475,3261.1,3260.8,0.21476]
[1736688056695,3.2078,3261.7,3260.7,0.4432]
[1736688056903,0.21474,3261.2,3260.9,0.21475]
[1736688057606,0.21474,3261.2,3260.7,0.4432]
[1736688057907,0.21473,3261.3,3261.0,0.21475]
[1736688058107,3.2078,3261.7,3260.7,0.4432]
[1736688058309,0.21473,3261.4,3260.7,0.4432]
[1736688058509,3.2078,3261.7,3261.0,0.21475]
[1736688058510,0.21474,3261.2,3261.0,0.21475]
[1736688059007,3.2078,3261.7,3260.7,0.4432]
[1736688059209,0.21473,3261.4,3261.2,0.21473]
[1736688059411,0.21473,3261.4,3261.3,0.4454]
[1736688059606,0.21472,3261.4,3261.3,0.4454]
[1736688060218,3.2078,3261.7,3261.3,0.4454]
[1736688060603,3.42251,3261.7,3261.4,0.66062]
[1736688060917,3.42251,3261.7,3261.5,0.21472]
[1736688061612,0.21471,3261.6,3261.4,0.4459]
[1736688061812,3.42251,3261.7,3261.4,0.66062]
[1736688062008,3.2078,3261.7,3261.4,0.66062]
[1736688062422,3.42251,3261.7,3261.5,0.21472]
[1736688062614,3.2078,3261.7,3261.6,0.21471]
[1736688062914,3.2078,3261.7,3261.4,0.4459]
[1736688063214,3.2078,3261.7,3261.6,0.21471]
[1736688063215,3.42251,3261.7,3261.6,0.21471]
[1736688063608,0.21471,3261.7,3261.6,0.21471]
[1736688064413,3.2078,3262.1,3261.7,0.2147]
[1736688064414,0.2147,3261.9,3261.7,0.2147]
[1736688064716,0.2147,3261.9,3261.4,3.6537]
[1736688064913,0.2147,3261.7,3261.6,0.21471]
[1736688065309,3.2078,3262.1,3261.4,3.6537]
[1736688065521,3.42248,3262.1,3261.9,0.21469]
[1736688065715,3.42248,3262.1,3262.0,0.4555]
[1736688065917,0.21468,3262.1,3262.0,0.4555]
[1736688066418,3.2078,3262.2,3261.6,0.21471]
[1736688066618,0.2147,3261.9,3261.6,0.21471]
[1736688066815,0.21469,3262.0,3261.5,0.4555]
[1736688067023,0.21469,3262.0,3261.8,0.2147]
[1736688067819,0.54364184,3263.3,3262.3,4.497]
[1736688068018,10.79310038,3263.4,3262.8,3.2078]
[1736688068210,10.79310038,3263.4,3263.3,0.2146]
[1736688068519,10.79310038,3263.4,3262.9,0.4612]
[1736688068909,10.79310038,3263.4,3263.3,0.2146]
[1736688069211,0.4571,3263.6,3263.0,0.46]
[1736688069411,0.21459,3263.5,3263.3,0.2146]
[1736688069612,0.2146,3263.4,3263.2,0.2146]
[1736688070319,0.4571,3263.6,3263.0,0.46]
[1736688070921,0.21459,3263.5,3263.2,0.2146]
[1736688071622,0.21459,3263.4,3263.0,0.46]
[1736688071814,0.21459,3263.5,3263.3,0.2146]
[1736688072017,0.21458,3263.6,3263.4,0.21459]
[1736688072215,0.21458,3263.6,3263.3,0.2146]
[1736688072417,0.21458,3263.6,3263.4,0.21459]
[1736688072627,3.2078,3263.7,3263.2,0.4781]
[1736688072929,0.21458,3263.6,3263.4,0.21459]
[1736688073518,3.2078,3263.7,3263.2,0.4781]
[1736688073812,0.21459,3263.5,3263.3,0.2146]
[1736688074018,3.2078,3263.7,3263.2,0.4781]
[1736688074318,0.21459,3263.5,3263.3,0.2146]
[1736688075415,3.2078,3263.7,3263.6,0.21458]
[1736688076225,0.21456,3263.9,3263.7,0.21457]
[1736688077023,0.21456,3263.9,3263.7,41.01457]
[1736688077320,3.6709,3264.4,3263.7,40.8]
[1736688077521,0.21456,3263.9,3263.7,41.01457]
[1736688077915,3.6709,3264.4,3263.7,40.8]
[1736688078127,0.21456,3264.0,3263.7,41.01457]
[1736688078322,0.21456,3264.0,3263.7,0.21457]
[1736688078623,0.21456,3264.0,3263.8,0.21456]
[1736688079119,0.21453,3264.3,3263.8,0.21456]
[1736688079320,0.21454,3264.2,3263.7,0.4735]
[1736688079620,0.21454,3264.2,3263.9,0.21456]
[1736688079621,0.21455,3264.2,3263.9,0.21456]
[1736688079924,0.21455,3264.2,3263.7,0.9107]
[1736688079925,3.2078,3264.4,3264.0,0.21455]
[1736688080122,0.21455,3264.2,3263.7,0.9107]
[1736688080324,0.21453,3264.3,3264.1,0.21454]
[1736688080720,3.42233,3264.4,3264.2,0.21454]
[1736688080913,3.2078,3264.4,3264.3,0.21453]
[1736688081119,3.2078,3264.4,3263.7,1.44714]
[1736688081321,3.2078,3264.4,3264.3,0.21453]
[1736688081519,3.2078,3264.4,3264.2,0.21454]
[1736688081721,0.21454,3264.3,3264.1,0.21454]
[1736688082016,3.2078,3264.4,3263.9,0.21456]
[1736688082217,0.21456,3263.9,3263.8,0.21456]
[1736688082424,0.21455,3264.1,3263.8,0.21457]
[1736688082623,3.2078,3264.4,3263.7,0.9107]
[1736688083127,0.21455,3264.1,3263.9,0.21455]
[1736688084125,0.21456,3263.9,3263.8,0.21456]
[1736688084630,0.21456,3264.0,3263.9,0.21456]
[1736688084826,0.53634,3264.3,3263.6,3.2078]
[1736688085037,0.21457,3263.7,3263.6,3.2078]
[1736688085224,0.21459,3263.5,3263.3,0.4734]
[1736688085424,0.21458,3263.6,3263.5,0.21459]
[1736688085732,0.21458,3263.7,3263.6,0.21458]
[1736688085925,0.21458,3263.6,3263.5,0.21458]
[1736688086125,0.4429,3263.9,3263.3,0.4734]
[1736688086526,0.21459,3263.5,3263.4,0.21459]
[1736688086727,0.21458,3263.7,3263.5,0.21458]
[1736688087137,0.4429,3263.9,3263.5,0.21458]
[1736688087937,0.21458,3263.6,3263.5,0.21458]
[1736688088145,0.21458,3263.6,3263.3,0.4734]
[1736688088344,0.4429,3263.9,3263.3,0.4734]
[1736688088546,0.00133075,3263.6,3263.3,0.4734]
[1736688088735,0.00133075,3263.6,3263.5,0.21459]
[1736688089339,0.00133075,3263.6,3263.3,0.4734]
[1736688089640,0.00133075,3263.6,3263.5,0.21459]
[1736688090637,0.21591075,3263.6,3263.5,0.21459]
[1736688090848,0.00133075,3263.6,3263.5,0.21459]
[1736688092444,0.21591075,3263.6,3263.5,0.21459]
[1736688093153,0.00133075,3263.6,3263.4,0.21459]
[1736688093345,0.00133075,3263.6,3263.5,0.21459]
[1736688094052,0.21461,3263.2,3262.8,0.21463]
[1736688094348,3.20913075,3263.6,3262.7,3.68]
[1736688094550,0.2146,3263.4,3263.3,0.2146]
[1736688095547,3.20913075,3263.6,3262.8,40.8]
[1736688095748,0.2146,3263.3,3263.2,0.2146]
[1736688095949,3.20913075,3263.6,3262.8,41.01463]
[1736688095950,0.21463,3263.0,3262.8,41.01463]
[1736688096140,0.21461,3263.2,3263.1,0.21461]
[1736688096552,3.20913075,3263.6,3262.8,40.8]
[1736688096847,0.2146,3263.3,3263.1,0.21461]
[1736688097042,0.2146,3263.3,3263.2,0.21461]
[1736688098948,3.20913075,3263.6,3262.8,40.8]
[1736688099149,3.20913075,3263.6,3262.7,3.68]
[1736688099456,3.20913075,3263.6,3263.5,0.21459]
[1736688099655,3.42371075,3263.6,3263.5,0.21459]
[1736688100051,3.42371075,3263.6,3263.5,40.8]
[1736688100448,0.21459,3263.5,3263.4,0.21459]
[1736688100654,3.20913075,3263.6,3262.7,3.2078]
[1736688100853,3.20913075,3263.6,3262.8,40.8]
[1736688101050,0.2146,3263.4,3263.3,0.2146]
[1736688102062,3.20913075,3263.6,3262.8,41.2824]
[1736688102262,0.21461,3263.3,3263.1,0.21461]
[1736688102463,0.2146,3263.4,3263.2,0.2146]
[1736688102762,3.20913075,3263.6,3262.8,41.2824]
[1736688102953,0.21461,3263.2,3262.8,41.2824]
[1736688103150,3.20913075,3263.6,3262.8,0.4824]
[1736688103460,0.21462,3263.0,3262.9,0.21462]
[1736688104257,0.21462,3263.0,3262.8,0.69703]
[1736688104657,0.53647,3263.5,3262.8,0.4824]
[1736688104857,0.21463,3263.0,3262.9,0.21463]
[1736688105362,0.21463,3262.9,3262.8,0.69703]
[1736688105863,0.21462,3263.0,3262.9,0.21462]
[1736688106258,0.21463,3262.9,3262.8,0.69703]
[1736688106858,0.21462,3263.0,3262.9,0.21462]
[1736688107361,3.2078,3263.2,3262.8,0.4824]
[1736688107762,0.21463,3262.9,3262.8,0.69703]
[1736688108858,3.2078,3263.2,3262.8,0.4824]
[1736688109066,0.21462,3263.0,3262.9,0.21462]
[1736688110266,0.21463,3262.8,3262.7,3.42244]
[1736688111055,0.21463,3262.8,3262.7,3.2078]
[1736688111367,0.21463,3262.8,3262.7,3.42244]
[1736688111561,0.21463,3262.8,3262.7,3.2078]
[1736688112462,0.21465,3262.6,3262.5,0.9122]
[1736688112869,0.21464,3262.7,3262.5,0.9122]
[1736688113069,0.21464,3262.7,3262.6,0.21464]
[1736688113266,0.21465,3262.6,3262.5,1.12685]
[1736688113661,0.21464,3262.7,3262.3,0.68636]
[1736688113865,0.21466,3262.5,3262.4,1.10335]
[1736688115665,0.21466,3262.5,3262.4,0.8887]
[1736688115867,0.21466,3262.5,3262.4,1.10336]
[1736688116064,0.21466,3262.5,3262.4,0.8887]
[1736688116376,0.21466,3262.5,3262.4,1.10336]
[1736688117275,0.21466,3262.5,3262.4,0.8887]
[1736688120971,3.6653,3262.8,3262.0,3.2078]
[1736688121167,3.6653,3262.8,3262.0,3.6906]
[1736688121168,0.21468,3262.1,3262.0,3.6906]
[1736688122175,0.21468,3262.1,3262.0,3.2078]
[1736688122477,0.2147,3261.7,3261.6,0.69623047]
[1736688122674,0.2147,3261.7,3261.6,0.4506]
[1736688123879,3.74451,3262.1,3261.3,3.2078]
[1736688124068,0.21471,3261.6,3261.5,0.92]
[1736688128571,0.53661,3262.7,3261.5,1.45679]
[1736688128774,3.6746,3263.0,3262.3,3.2078]
[1736688129072,0.21463,3262.8,3262.7,3.42244]
[1736688129279,0.21463,3262.8,3262.7,3.2078]
[1736688129669,0.21463,3262.8,3262.7,3.42244]
[1736688130176,0.21463,3262.8,3262.7,3.2078]
[1736688130376,0.21463,3262.8,3262.7,3.42244]
[1736688131674,0.21463,3262.8,3262.7,3.2078]
[1736688132273,0.21463,3262.8,3262.7,3.42244]
[1736688132874,0.21463,3262.9,3262.7,3.42243]
[1736688133679,4.2111,3263.4,3262.7,3.42243]
[1736688133871,0.21463,3262.8,3262.7,3.42243]
[1736688134879,0.21463,3262.8,3262.7,0.21463]
[1736688135282,0.21463,3262.8,3262.7,3.42243]
[1736688136685,0.21463,3262.8,3262.7,3.42244]
[1736688136976,0.21463,3262.8,3262.7,3.2078]
[1736688137979,4.2111,3263.4,3262.4,0.9002]
[1736688137980,0.21465,3262.6,3262.4,0.9002]
[1736688138177,0.21465,3262.5,3262.4,0.9002]
[1736688138378,0.21467,3262.3,3262.2,3.6849]
[1736688140080,0.53662,3262.6,3262.0,0.68718]
[1736688140081,0.21468,3262.1,3262.0,0.68718]
[1736688140991,0.21468,3262.1,3262.0,0.4725]
[1736688141891,0.21468,3262.1,3262.0,0.68718]
[1736688143589,0.21468,3262.1,3262.0,0.4725]
[1736688143791,0.21468,3262.1,3262.0,0.68718]
[1736688144287,0.21468,3262.1,3262.0,0.4725]
[1736688144992,0.21469,3261.9,3261.8,3.6849]
[1736688145200,0.21469,3261.9,3261.8,3.2078]
[1736688145694,0.67069,3261.9,3261.8,3.2078]
[1736688147588,0.67069,3261.9,3261.8,3.4225]
[1736688147789,0.67069,3261.9,3261.8,3.2078]
[1736688149592,0.99274,3261.9,3261.3,0.67093]
[1736688149894,0.53675,3261.8,3261.2,3.2078]
[1736688150095,0.21473,3261.3,3261.2,3.2078]
[1736688151091,0.456,3261.9,3261.2,3.2078]
[1736688151406,0.456,3261.9,3261.3,0.9185]
[1736688151695,0.2147,3261.8,3261.6,0.21471]
[1736688152302,0.2147,3261.8,3261.5,0.21471]
[1736688152495,0.2147,3261.8,3261.4,0.4598]
[1736688152694,0.2147,3261.8,3261.6,0.21471]
[1736688152890,0.2147,3261.8,3261.4,0.4598]
[1736688153094,3.2078,3262.0,3261.9,0.21469]
[1736688154300,0.21466,3262.4,3262.3,0.21467]
[1736688156499,0.21466,3262.4,3262.2,0.4797]
[1736688156500,0.21465,3262.6,3262.5,0.21465]
[1736688156797,0.21465,3262.6,3262.4,0.21466]
[1736688157001,3.2078,3262.9,3262.4,0.21466]
[1736688157198,0.21465,3262.6,3262.5,0.4437]
[1736688157806,3.2078,3262.9,3262.3,0.21466]
[1736688158004,0.21466,3262.5,3262.3,0.21466]
[1736688160501,0.21466,3262.4,3262.3,0.21466]
[1736688161300,3.74436,3263.0,3262.3,3.2078]
[1736688161507,0.21466,3262.4,3262.3,3.2078]
[1736688163907,0.21464,3262.7,3262.3,3.2078]
[1736688164104,0.21466,3262.4,3262.3,3.2078]
[1736688166497,0.4435,3262.5,3262.1,0.65838]
[1736688166699,0.21467,3262.2,3262.1,0.65838]
[1736688168508,0.21468,3262.0,3261.9,3.6863]
[1736688168703,0.21468,3262.0,3261.9,3.2078]
[1736688170415,0.21468,3262.0,3261.9,3.42249]
[1736688170616,0.21468,3262.0,3261.9,3.2078]
[1736688170918,0.21468,3262.0,3261.9,3.42249]
[1736688172717,0.21468,3262.0,3261.9,3.2078]
[1736688173108,0.21468,3262.0,3261.9,3.42249]
[1736688174110,0.21468,3262.0,3261.9,3.2078]
[1736688174316,0.21468,3262.0,3261.9,3.42249]
[1736688174516,0.21468,3262.0,3261.9,3.2078]
[1736688174719,3.6778,3262.1,3261.3,4.78427041]
[1736688174906,0.21472,3261.4,3261.3,4.78427041]
[1736688175809,0.4568,3261.6,3261.2,1.3577]
[1736688176120,0.99359,3261.6,3260.8,3.2078]
[1736688176320,0.21475,3261.1,3261.0,0.21475]
[1736688176511,0.21475,3261.0,3260.9,41.01475]
[1736688176914,0.21475,3261.1,3261.0,0.21475]
[1736688177611,3.6669,3261.3,3260.8,4.5467]
[1736688177807,0.21476,3261.0,3260.9,0.21475]
[1736688180418,0.21474,3261.2,3261.1,0.21474]
[1736688180618,3.2078,3261.3,3261.2,0.21474]
[1736688180921,0.21472,3261.5,3261.4,0.21472]
[1736688181120,0.67151,3261.6,3261.5,0.21472]
[1736688182816,0.21472,3261.5,3261.4,1.56652]
[1736688183219,0.67151,3261.6,3261.5,0.21472]
[1736688183731,3.2078,3261.8,3261.4,1.3518]
[1736688183918,3.2078,3261.8,3261.7,0.2147]
[1736688184723,3.2078,3262.0,3261.4,1.3518]
[1736688184919,3.42249,3262.0,3261.9,0.21469]
[1736688185928,0.21469,3261.9,3261.8,0.2147]
[1736688186432,3.2078,3262.0,3261.9,0.21469]
[1736688186820,3.42248,3262.0,3261.9,0.21469]
[1736688187028,0.21469,3261.9,3261.8,0.2147]
[1736688188026,3.2078,3262.0,3261.9,0.21469]
[1736688188825,0.21467,3262.3,3262.2,0.21467]
[1736688189026,3.20878166,3262.4,3261.7,3.74457]
[1736688189227,0.21467,3262.2,3262.1,0.21468]
[1736688189726,0.21468,3262.1,3262.0,0.21468]
[1736688189923,0.21467,3262.2,3262.1,0.21467]
[1736688190725,3.20878166,3262.4,3262.3,0.21467]
[1736688191926,0.00098166,3262.4,3262.3,0.21467]
[1736688205437,0.00098166,3262.4,3262.1,3.2078]
[1736688205637,0.21467,3262.3,3262.2,0.21467]
[1736688209339,0.21469,3261.9,3261.4,0.53681]
[1736688209532,0.21469,3261.9,3261.8,0.2147]
[1736688211640,0.2147,3261.8,3261.7,3.4225]
[1736688211832,0.2147,3261.9,3261.8,0.21469]
[1736688212332,0.9355,3262.2,3261.7,3.2078]
[1736688212534,0.2147,3261.8,3261.7,3.4225]
[1736688213436,0.21469,3262.0,3261.9,0.21469]
[1736688213636,0.9355,3262.2,3261.7,3.2078]
[1736688213939,0.2147,3261.9,3261.8,0.2147]
[1736688216543,0.98925166,3262.4,3261.7,3.2078]
[1736688216544,0.00098166,3262.4,3261.7,3.2078]
[1736688216744,0.90791984,3263.7,3263.5,0.21459]
[1736688216945,1.27276575,3263.6,3263.5,3.42239]
[1736688217151,9.21990225,3263.8,3263.7,0.21457]
[1736688217353,5.07655176,3263.8,3263.7,0.21457]
[1736688217846,0.67523,3264.4,3263.6,0.4612]
[1736688218052,0.4607,3264.4,3264.1,0.21455]
[1736688218247,0.4607,3264.4,3264.0,3.2078]
[1736688218447,0.67523,3264.4,3264.1,0.21455]
[1736688218950,0.67523,3264.4,3264.2,0.21454]
[1736688219448,0.67523,3264.4,3264.0,3.2078]
[1736688219648,0.21456,3263.9,3263.6,0.21458]
[1736688219855,0.21452,3264.5,3263.9,0.21456]
[1736688220051,0.21455,3264.1,3263.9,0.21456]
[1736688220953,0.21455,3264.1,3263.6,3.2078]
[1736688221147,0.21455,3264.1,3263.8,0.21456]
[1736688221347,3.2078,3264.3,3263.6,3.2078]
[1736688221540,0.21456,3263.9,3263.6,3.42238]
[1736688221852,3.2078,3264.3,3263.6,3.42238]
[1736688222154,0.21457,3263.8,3263.6,3.42238]
[1736688223144,0.21457,3263.9,3263.6,3.42238]
[1736688223345,3.2078,3264.3,3263.6,3.2078]
[1736688223542,0.21457,3263.8,3263.6,3.42238]
[1736688223950,0.21456,3263.9,3263.7,0.21457]
[1736688224150,3.2078,3264.3,3263.6,3.2078]
[1736688224342,0.21457,3263.8,3263.6,3.2078]
[1736688224549,0.21457,3263.8,3263.6,3.42237]
[1736688224952,0.21456,3263.9,3263.7,0.21457]
[1736688225456,3.2078,3264.3,3263.6,3.2078]
[1736688225653,0.21457,3263.9,3263.6,3.42238]
[1736688226547,0.21454,3264.2,3263.5,3.2078]
[1736688226750,0.21457,3263.8,3263.6,0.21458]
[1736688229556,3.2078,3264.3,3263.6,0.21458]
[1736688229855,0.21457,3263.8,3263.6,0.21458]
[1736688230461,0.21456,3263.9,3263.7,0.21457]
[1736688230653,0.21457,3263.8,3263.7,0.21457]
[1736688230854,0.21456,3263.9,3263.7,0.21457]
[1736688231159,3.2078,3264.3,3263.6,0.21457]
[1736688231361,0.21457,3263.8,3263.6,0.21457]
[1736688231852,0.21457,3263.8,3262.6,3.2078]
[1736688231853,3.74423,3263.8,3262.6,3.2078]
[1736688232055,3.2078,3263.4,3262.9,0.65892]
[1736688232445,0.21462,3263.0,3262.9,0.65892]
[1736688232656,0.21462,3263.0,3262.9,0.4443]
[1736688234359,0.21462,3263.0,3262.9,0.65893]
[1736688234565,0.21462,3263.0,3262.9,0.4443]
[1736688236758,3.2078,3263.4,3262.6,3.2078]
[1736688237057,3.2078,3263.4,3262.0,0.21468]
[1736688237058,0.21468,3262.2,3262.0,0.21468]
[1736688237458,0.21468,3262.2,3262.0,41.48618]
[1736688237853,0.21468,3262.2,3262.0,0.68618]
[1736688238361,0.21468,3262.1,3262.0,0.4715]
[1736688238562,0.4597,3262.6,3262.0,0.68618]
[1736688238754,0.21468,3262.1,3262.0,0.4715]
[1736688240164,0.21468,3262.1,3262.0,0.68618]
[1736688240356,0.21468,3262.1,3262.0,0.4715]
[1736688244567,3.6675,3262.6,3261.6,0.4355]
[1736688244568,0.2147,3261.7,3261.6,0.4355]
[1736688245266,0.21459,3263.5,3263.2,0.21461]
[1736688245464,3.74416,3264.3,3263.0,3.2078]
[1736688245770,0.21457,3263.7,3263.3,41.0146]
[1736688245968,0.21458,3263.6,3263.3,41.0146]
[1736688246468,0.21458,3263.6,3263.2,0.2146]
[1736688246867,0.21457,3263.8,3263.5,0.21458]
[1736688247373,0.21458,3263.7,3263.4,3.2078]
[1736688247573,0.21458,3263.7,3263.4,3.42239]
[1736688247976,0.21457,3263.9,3263.4,3.2078]
[1736688248184,0.21455,3264.1,3263.8,0.21456]
[1736688248570,0.21455,3264.1,3263.9,0.21456]
[1736688248775,0.21454,3264.2,3263.9,0.21456]
[1736688249569,3.2078,3264.3,3263.9,0.21456]
[1736688249877,0.21453,3264.4,3264.1,0.21455]
[1736688250073,3.2078,3264.7,3263.8,3.2078]
[1736688250280,0.21452,3264.6,3264.3,0.21453]
[1736688250970,3.2078,3264.7,3264.3,0.21453]
[1736688251177,0.21452,3264.5,3264.2,0.21454]
[1736688251379,3.2078,3264.7,3264.3,0.21453]
[1736688251574,0.21451,3264.6,3264.3,0.21453]
[1736688251770,0.21451,3264.6,3264.2,0.21454]
[1736688252474,0.21451,3264.6,3264.3,0.21453]
[1736688254666,0.21451,3264.6,3264.2,3.2078]
[1736688254865,3.2078,3264.7,3264.3,0.21453]
[1736688255069,0.21451,3264.6,3264.3,0.21453]
[1736688255283,3.2078,3264.7,3264.2,3.2078]
[1736688255474,0.21451,3264.6,3264.2,3.42234]
[1736688256067,3.2078,3264.7,3264.4,0.21452]
[1736688256068,3.42231,3264.7,3264.4,0.21452]
[1736688256271,0.21452,3264.6,3264.3,0.21453]
[1736688257284,3.2078,3265.1,3264.9,0.21449]
[1736688257474,0.21448,3265.2,3264.8,3.4223]
[1736688258780,0.21449,3265.0,3264.8,3.2078]
[1736688258973,3.2078,3265.2,3264.8,3.2078]
[1736688259176,0.21449,3265.0,3264.8,3.2078]
[1736688260475,0.21449,3264.9,3264.8,3.2078]
[1736688261483,3.2078,3265.2,3264.8,3.2078]
[1736688261682,0.21449,3265.0,3264.8,3.2078]
[1736688263181,0.21449,3264.9,3264.8,3.2078]
[1736688263384,3.2078,3265.2,3264.3,3.2078]
[1736688263385,0.21451,3264.7,3264.3,3.2078]
[1736688263574,3.2078,3265.2,3264.7,0.21451]
[1736688263777,0.21449,3265.0,3264.7,0.21451]
[1736688263987,3.2078,3265.2,3264.3,3.2078]
[1736688264184,3.2078,3265.2,3265.1,0.21448]
[1736688264483,3.2078,3265.6,3265.3,0.21446]
[1736688264682,3.2078,3265.6,3264.9,0.9474]
[1736688264984,0.21446,3265.5,3265.3,0.21446]
[1736688266583,0.21446,3265.4,3265.2,0.21447]
[1736688267385,3.2078,3265.6,3265.2,0.21447]
[1736688267585,0.21446,3265.5,3265.2,0.21447]
[1736688268188,0.21446,3265.5,3264.9,0.9474]
[1736688268482,0.21446,3265.5,3265.2,0.21447]
[1736688268684,3.2078,3265.6,3265.5,0.21445]
[1736688268985,3.59906965,3266.3,3265.2,3.2078]
[1736688269186,0.21442,3266.0,3265.8,0.21443]
[1736688270079,0.21443,3265.9,3265.7,1.15254]
[1736688270880,4.06296965,3266.3,3265.7,0.9381]
[1736688271077,0.21444,3265.8,3265.7,0.9381]
[1736688272283,4.06296965,3266.3,3265.7,0.9381]
[1736688272488,0.21443,3265.9,3265.7,0.9381]
[1736688272689,0.21444,3265.8,3265.7,0.9381]
[1736688273185,0.21443,3265.9,3265.7,1.15254]
[1736688273386,3.2078,3266.3,3265.7,0.9381]
[1736688273685,3.74375,3266.7,3265.9,0.21442]
[1736688273984,0.53596,3266.6,3265.7,0.9381]
[1736688274286,0.536,3266.4,3265.7,0.9381]
[1736688274485,0.21444,3265.8,3265.7,0.9381]
[1736688275593,0.21444,3265.7,3265.6,3.2078]
[1736688276487,0.21444,3265.7,3265.6,3.42225]
[1736688276681,0.21444,3265.7,3265.6,3.2078]
[1736688278395,0.21444,3265.7,3265.6,3.42225]
[1736688279191,0.21444,3265.7,3265.6,3.2078]
[1736688279386,0.21444,3265.7,3265.6,3.42225]
[1736688279897,0.8963,3266.0,3265.4,0.9133]
[1736688280091,0.21445,3265.5,3265.4,0.66716]
[1736688280891,0.21445,3265.6,3265.5,0.21445]
[1736688281494,3.2078,3265.7,3265.1,3.2078]
[1736688281799,3.2078,3265.7,3264.9,0.445]
[1736688281800,3.2078,3265.3,3264.9,0.445]
[1736688281998,0.21449,3265.1,3264.9,0.445]
[1736688282205,3.2078,3265.3,3264.9,0.445]
[1736688282495,0.21449,3265.0,3264.9,0.65949]
[1736688287100,3.2078,3265.3,3264.9,0.445]
[1736688287308,0.21449,3265.1,3265.0,0.21448]
[1736688288801,3.2078,3265.3,3264.9,0.445]
[1736688289110,0.21449,3265.0,3264.9,0.445]
[1736688289308,0.21449,3265.0,3264.9,0.65949]
[1736688289503,0.21449,3265.0,3264.9,41.45949]
[1736688290108,3.653,3265.3,3264.9,40.8]
[1736688290305,3.653,3265.3,3264.9,41.01449]
[1736688290706,0.4452,3265.3,3264.9,41.01449]
[1736688291109,0.21449,3265.0,3264.9,41.01449]
[1736688291613,0.21449,3265.0,3264.9,0.21449]
[1736688292417,0.21449,3265.1,3265.0,0.21448]
[1736688292911,0.21449,3265.0,3264.9,0.21449]
[1736688296211,0.21449,3265.1,3265.0,0.21448]
[1736688298214,0.21448,3265.2,3265.1,0.21448]
[1736688298722,0.4435,3265.4,3264.8,3.2078]
[1736688298923,0.21449,3265.1,3265.0,0.21448]
[1736688301020,0.97967,3265.4,3264.8,3.2078]
[1736688301217,0.21449,3264.9,3264.8,3.4223]
[1736688302822,0.21449,3264.9,3264.8,0.2145]
[1736688306320,0.53621,3265.2,3264.6,3.2078]
[1736688306521,0.21451,3264.8,3264.7,0.21451]
[1736688307524,0.53621,3265.2,3264.6,0.21451]
[1736688307525,0.21451,3264.7,3264.6,0.21451]
[1736688308421,0.21451,3264.8,3264.7,0.2145]
[1736688309226,0.4578,3264.9,3264.2,7.99207041]
[1736688309416,0.21453,3264.5,3264.4,0.21452]
[1736688311026,0.21453,3264.5,3264.3,0.4825]
[1736688311027,0.21452,3264.6,3264.5,0.21452]
[1736688312233,0.21452,3264.5,3264.4,0.21452]
[1736688312525,0.21453,3264.4,3264.3,0.69703]
[1736688312724,0.21453,3264.4,3264.3,0.4825]
[1736688312924,0.21453,3264.4,3264.3,0.69703]
[1736688313328,0.21453,3264.3,3264.2,3.90504]
[1736688313526,0.21453,3264.4,3264.3,0.21453]
[1736688314429,0.4703,3264.7,3264.2,3.6905]
[1736688314630,0.21453,3264.3,3264.2,3.90504]
[1736688315026,0.21453,3264.3,3264.2,3.6905]
[1736688315333,0.21456,3264.0,3263.6,7.99207041]
[1736688315528,0.21456,3264.0,3263.8,0.21456]
[1736688315833,0.21456,3263.9,3263.7,0.21457]
[1736688316127,0.21456,3263.9,3263.8,0.21457]
[1736688320123,0.98566,3264.3,3263.6,3.2078]
[1736688320328,0.21457,3263.8,3263.7,0.21457]
[1736688321226,0.468,3264.1,3263.6,3.42237]
[1736688321433,0.21457,3263.8,3263.7,0.21457]
[1736688323940,0.21457,3263.7,3263.6,3.42237]
[1736688324435,0.21457,3263.8,3263.7,0.21457]